bitfinex/quotes_SOLUSD_20230113
["timestamp","ask_amount","ask_price","bid_price","bid_amount"]
[1673586970301,17.96,16.974,16.957,4.17691051]
[1673586970740,10.0,16.973,16.957,4.17691051]
[1673586971263,27.96,16.974,16.957,4.17691051]
[1673586971480,10.0,16.974,16.957,4.17691051]
[1673586971790,17.96,16.973,16.957,4.17691051]
[1673586972003,134.98467,16.975,16.957,4.17691051]
[1673586972195,17.96,16.974,16.957,4.17691051]
[1673586974313,134.98467,16.975,16.957,4.17691051]
[1673586975452,17.96,16.974,16.957,4.17691051]
[1673586976207,17.96,16.974,16.957,14.17691051]
[1673586976425,134.98467,16.975,16.957,14.17691051]
[1673586977575,134.98467,16.975,16.957,4.17691051]
[1673586977989,134.98467,16.975,16.957,14.17691051]
[1673586978199,134.98467,16.975,16.96,15.84]
[1673586978414,130.1269,16.975,16.961,4.17691051]
[1673586980392,315.24306661,16.989,16.962,29.93770351]
[1673586980714,114.05,16.981,16.963,24.17691051]
[1673586980931,114.05,16.981,16.963,44.11461402]
[1673586981126,114.05,16.981,16.963,24.17691051]
[1673586981552,114.05,16.981,16.964,10.0]
[1673586981762,114.05,16.981,16.966,4.17691051]
[1673586981981,114.05,16.981,16.966,14.17691051]
[1673586982405,114.05,16.981,16.966,69.38626029]
[1673586982608,114.05,16.981,16.968,4.17691051]
[1673586982932,315.24306661,16.989,16.97,15.84]
[1673586983122,15.83,16.99,16.971,24.17691051]
[1673586983332,4.85777,16.988,16.971,24.17691051]
[1673586984282,18.92,16.987,16.971,24.17691051]
[1673586984501,10.0,16.986,16.971,4.17691051]
[1673586984721,10.0,16.984,16.97,4.17691051]
[1673586985327,17.96,16.983,16.966,4.17691051]
[1673586985539,138.95767,16.983,16.966,4.17691051]
[1673586986505,120.99767,16.983,16.966,4.17691051]
[1673586986705,120.99767,16.983,16.966,14.17691051]
[1673586986918,116.1399,16.983,16.966,14.17691051]
[1673586988277,116.1399,16.983,16.966,4.17691051]
[1673586988513,116.1399,16.983,16.966,24.17691051]
[1673586989668,116.1399,16.983,16.967,10.0]
[1673586989853,116.1399,16.983,16.968,4.17691051]
[1673586992395,79.07,16.99,16.97,15.84]
[1673586992607,23.77777,16.989,16.971,24.17691051]
[1673586993002,4.85777,16.989,16.971,24.17691051]
[1673586994281,4.85777,16.989,16.973,4.17691051]
[1673586994471,110.7008,16.991,16.975,14.17691051]
[1673586994681,110.7008,16.991,16.977,4.17691051]
[1673586995523,110.7008,16.991,16.976,4.17691051]
[1673586997945,14.85777,16.99,16.976,4.17691051]
[1673586998155,10.0,16.988,16.976,4.17691051]
[1673586998374,17.96,16.987,16.976,4.17691051]
[1673586998581,4.85777,16.988,16.976,4.17691051]
[1673586998797,25.74,16.99,16.976,4.17691051]
[1673586999751,15.74,16.99,16.976,4.17691051]
[1673587000167,10.0,16.989,16.976,4.17691051]
[1673587000375,17.96,16.988,16.976,4.17691051]
[1673587000694,14.85777,16.989,16.97,15.73]
[1673587000695,4.85777,16.989,16.972,4.17691051]
[1673587002692,110.7008,16.991,16.972,14.17691051]
[1673587002912,110.7008,16.991,16.973,20.0]
[1673587003227,110.7008,16.991,16.974,4.17691051]
[1673587003433,110.7008,16.991,16.974,114.54871051]
[1673587003647,110.7008,16.991,16.975,20.0]
[1673587003859,110.7008,16.991,16.976,4.17691051]
[1673587009735,110.7008,16.991,16.976,14.17691051]
[1673587010347,15.83,17.0,16.976,14.17691051]
[1673587010556,30.46683801,16.998,16.976,4.17691051]
[1673587010780,138.0309,16.997,16.976,4.17691051]
[1673587010983,108.0309,16.997,16.976,4.17691051]
[1673587011202,30.46683801,16.996,16.981,4.17691051]
[1673587011409,30.46683801,16.996,16.981,24.17691051]
[1673587012037,108.0309,16.997,16.981,24.17691051]
[1673587012984,30.46683801,16.996,16.981,4.17691051]
[1673587013194,20.0,16.995,16.981,4.17691051]
[1673587013616,30.46683801,16.994,16.981,4.17691051]
[1673587013830,30.46683801,16.994,16.975,4.17691051]
[1673587014465,4.85777,16.993,16.975,4.17691051]
[1673587014674,15.84,16.99,16.975,4.17691051]
[1673587014886,38.92,16.989,16.97,15.73]
[1673587015096,154.23977,16.989,16.97,15.73]
[1673587015297,4.85777,16.988,16.97,15.73]
[1673587015520,0.96,16.987,16.97,15.73]
[1673587015737,0.96,16.986,16.967,1.57664859]
[1673587016060,15.81777,16.985,16.965,112.6047]
[1673587016247,15.84,16.98,16.96,15.72]
[1673587016452,15.84,16.98,16.957,10.0]
[1673587016673,37.96,16.979,16.957,10.0]
[1673587016998,49.58639237,16.979,16.96,15.84]
[1673587017316,50.74397289,16.984,16.96,15.84]
[1673587017504,50.74397289,16.984,16.961,10.0]
[1673587017715,50.74397289,16.984,16.963,10.0]
[1673587017926,30.46683801,16.983,16.964,20.0]
[1673587018679,30.46683801,16.983,16.965,111.0386]
[1673587018872,30.46683801,16.983,16.966,20.0]
[1673587021713,10.0,16.987,16.966,20.0]
[1673587021925,23.77777,16.986,16.966,20.0]
[1673587022141,20.0,16.985,16.966,20.0]
[1673587022340,50.46683801,16.985,16.966,20.0]
[1673587022561,17.96,16.984,16.966,20.0]
[1673587022770,48.42683801,16.984,16.966,20.0]
[1673587023180,30.46683801,16.984,16.966,20.0]
[1673587024563,20.0,16.985,16.967,10.0]
[1673587024773,24.85777,16.986,16.967,10.0]
[1673587025305,24.85777,16.986,16.966,30.0]
[1673587025936,24.85777,16.986,16.966,20.0]
[1673587027193,110.462,16.989,16.97,15.72]
[1673587027422,110.462,16.989,16.971,1.5919388]
[1673587027597,110.462,16.989,16.971,21.5919388]
[1673587027801,14.85777,16.988,16.971,20.0]
[1673587028012,14.85777,16.988,16.97,15.72]
[1673587028013,4.85777,16.987,16.962,111.9458]
[1673587028232,10.0,16.986,16.966,20.0]
[1673587028444,21.85777,16.985,16.966,20.0]
[1673587028653,16.77777,16.984,16.966,20.0]
[1673587028979,10.0,16.982,16.966,20.0]
[1673587029190,10.0,16.98,16.966,20.0]
[1673587030660,120.01337,16.981,16.966,20.0]
[1673587030876,17.96,16.98,16.966,20.0]
[1673587031922,48.42683801,16.98,16.966,20.0]
[1673587032135,15.81777,16.979,16.963,20.0]
[1673587032332,10.0,16.977,16.963,20.0]
[1673587032534,17.96,16.976,16.963,20.0]
[1673587032742,17.96,16.976,16.96,15.75]
[1673587032974,17.96,16.976,16.956,117.1121]
[1673587032975,10.0,16.974,16.957,113.0071]
[1673587033802,114.3056,16.974,16.957,113.0071]
[1673587035897,17.96,16.973,16.957,113.0071]
[1673587038003,114.3056,16.974,16.957,113.0071]
[1673587039798,27.96,16.973,16.957,113.0071]
[1673587040729,27.96,16.973,16.956,117.1121]
[1673587040937,27.96,16.973,16.95,15.82]
[1673587040938,46.28460801,16.972,16.95,15.82]
[1673587041161,15.84,16.97,16.951,20.0]
[1673587041379,23.77777,16.969,16.951,20.0]
[1673587041597,14.85777,16.968,16.951,20.0]
[1673587041798,17.96,16.967,16.951,20.0]
[1673587042640,22.81777,16.967,16.951,20.0]
[1673587042851,22.81777,16.967,16.948,117.266]
[1673587042852,20.96,16.966,16.948,117.266]
[1673587043041,10.0,16.964,16.94,15.82]
[1673587043250,23.77777,16.963,16.94,15.82]
[1673587043465,4.85777,16.962,16.94,15.82]
[1673587043674,18.92,16.961,16.94,15.82]
[1673587043892,4.85777,16.96,16.94,15.82]
[1673587044097,17.96,16.959,16.94,25.82]
[1673587045162,17.96,16.959,16.94,15.82]
[1673587045573,17.96,16.959,16.941,20.0]
[1673587049459,17.0,16.959,16.941,20.0]
[1673587049695,44.1219557,16.961,16.941,30.0]
[1673587050933,44.1219557,16.961,16.941,20.0]
[1673587052947,44.1219557,16.961,16.941,30.0]
[1673587053774,44.1219557,16.961,16.941,20.0]
[1673587055261,10.0,16.959,16.941,20.0]
[1673587055458,17.96,16.958,16.941,20.0]
[1673587057573,4.85777,16.96,16.941,20.0]
[1673587058091,10.0,16.964,16.941,30.0]
[1673587058813,17.96,16.963,16.941,30.0]
[1673587060201,10.0,16.961,16.941,20.0]
[1673587060509,39.61777,16.96,16.941,20.0]
[1673587060726,14.85777,16.959,16.941,20.0]
[1673587060931,23.77777,16.958,16.941,20.0]
[1673587061988,23.77777,16.958,16.939,112.2484]
[1673587061989,24.85777,16.957,16.939,112.2484]
[1673587062187,23.77777,16.956,16.939,112.2484]
[1673587062401,20.0,16.955,16.939,112.2484]
[1673587062626,17.96,16.954,16.939,112.2484]
[1673587065034,17.0,16.954,16.939,112.2484]
[1673587070403,11.92,16.953,16.938,98.891]
[1673587070589,17.0,16.952,16.938,98.891]
[1673587070796,0.96,16.951,16.938,98.891]
[1673587071010,17.0,16.952,16.938,98.891]
[1673587071331,17.96,16.953,16.938,98.891]
[1673587073744,17.0,16.953,16.938,98.891]
[1673587073955,0.96,16.952,16.938,98.891]
[1673587074164,17.0,16.953,16.938,98.891]
[1673587077850,4.85777,16.954,16.94,15.84]
[1673587078062,30.46683801,16.96,16.941,30.0]
[1673587078270,113.6808,16.957,16.941,30.0]
[1673587078710,113.6808,16.957,16.94,15.84]
[1673587078711,144.14763801,16.957,16.94,15.84]
[1673587078916,20.0,16.956,16.94,15.84]
[1673587079134,20.0,16.956,16.938,98.891]
[1673587079447,17.0,16.955,16.938,98.891]
[1673587081445,17.0,16.955,16.94,11.87]
[1673587086592,20.0,16.956,16.94,11.87]
[1673587090574,41.5219557,16.964,16.94,79.41770351]
[1673587090782,109.2761,16.963,16.942,10.0]
[1673587090994,109.2761,16.963,16.944,10.0]
[1673587091215,109.2761,16.963,16.945,20.0]
[1673587091845,17.0,16.962,16.945,20.0]
[1673587092261,109.2761,16.963,16.945,20.0]
[1673587094159,109.2761,16.963,16.95,11.87]
[1673587099220,10.0,16.962,16.95,11.87]
[1673587100683,109.2761,16.963,16.95,11.87]
[1673587100888,17.0,16.962,16.95,11.87]
[1673587103633,17.0,16.962,16.95,11.78712593]
[1673587106367,109.2761,16.963,16.95,11.78712593]
[1673587107525,10.0,16.961,16.95,11.78712593]
[1673587107716,17.0,16.96,16.95,11.78712593]
[1673587108558,109.2761,16.963,16.95,11.78712593]
[1673587110766,10.0,16.962,16.95,11.78712593]
[1673587110976,10.0,16.962,16.947,114.8852]
[1673587111703,18.92,16.961,16.947,114.8852]
[1673587111909,10.0,16.96,16.947,114.8852]
[1673587112122,17.0,16.959,16.947,114.8852]
[1673587113177,17.0,16.96,16.947,114.8852]
[1673587113407,0.96,16.959,16.947,114.8852]
[1673587113817,10.96,16.958,16.94,11.89]
[1673587114018,42.81777,16.957,16.94,11.89]
[1673587114230,0.96,16.956,16.94,11.89]
[1673587114545,0.96,16.955,16.94,11.89]
[1673587114748,0.96,16.954,16.94,11.89]
[1673587114958,17.0,16.954,16.94,11.89]
[1673587117392,0.96,16.953,16.94,11.89]
[1673587117815,17.0,16.954,16.94,11.89]
[1673587118548,11.92,16.953,16.94,11.89]
[1673587118760,17.0,16.952,16.94,11.89]
[1673587118962,0.96,16.951,16.94,11.89]
[1673587119161,12.83,16.95,16.93,59.37]
[1673587119374,10.0,16.948,16.931,20.0]
[1673587119599,17.0,16.947,16.931,20.0]
[1673587120120,11.87,16.95,16.931,20.0]
[1673587120332,4.85777,16.955,16.932,10.0]
[1673587120540,24.85777,16.955,16.933,20.0]
[1673587120757,24.85777,16.955,16.934,10.0]
[1673587121071,10.0,16.954,16.933,73.92326555]
[1673587121287,4.85777,16.953,16.935,20.0]
[1673587121490,4.85777,16.953,16.934,10.0]
[1673587121698,17.0,16.952,16.935,20.0]
[1673587123290,17.0,16.952,16.934,30.0]
[1673587123473,17.0,16.952,16.934,20.0]
[1673587123685,0.96,16.951,16.934,20.0]
[1673587124014,0.96,16.951,16.934,30.0]
[1673587124231,17.0,16.952,16.934,30.0]
[1673587124866,20.0,16.955,16.935,10.0]
[1673587125072,20.0,16.955,16.936,20.0]
[1673587126103,17.0,16.954,16.936,20.0]
[1673587126310,17.0,16.954,16.94,11.8]
[1673587127818,20.0,16.955,16.94,11.8]
[1673587128642,11.82,16.96,16.942,10.0]
[1673587128954,11.82,16.96,16.943,20.0]
[1673587129168,17.96,16.959,16.943,20.0]
[1673587130729,17.96,16.959,16.942,20.0]
[1673587131883,157.1436557,16.964,16.943,10.0]
[1673587132094,157.1436557,16.964,16.944,20.0]
[1673587133910,17.0,16.963,16.944,20.0]
[1673587134099,0.96,16.962,16.944,20.0]
[1673587135269,0.96,16.963,16.944,20.0]
[1673587135465,157.1436557,16.964,16.95,11.81]
[1673587135675,115.6217,16.964,16.95,11.81]
[1673587137062,30.46683801,16.969,16.95,59.42]
[1673587137273,30.46683801,16.969,16.951,21.43475477]
[1673587137460,30.46683801,16.969,16.951,20.0]
[1673587138107,111.5951,16.972,16.951,20.0]
[1673587138325,11.87,16.97,16.951,20.0]
[1673587138524,10.0,16.969,16.951,20.0]
[1673587138959,16.72777,16.97,16.951,20.0]
[1673587139366,18.92,16.969,16.951,20.0]
[1673587139677,30.46683801,16.968,16.951,20.0]
[1673587139902,17.96,16.967,16.951,20.0]
[1673587140739,48.42683801,16.967,16.951,20.0]
[1673587141483,48.34683064,16.967,16.951,20.0]
[1673587141697,17.87999263,16.967,16.951,20.0]
[1673587141893,30.46683801,16.966,16.951,20.0]
[1673587142109,17.0,16.965,16.951,20.0]
[1673587143797,0.96,16.964,16.951,20.0]
[1673587144408,17.0,16.965,16.951,20.0]
[1673587144740,30.46683801,16.965,16.951,20.0]
[1673587144956,17.96,16.964,16.951,20.0]
[1673587147364,0.96,16.963,16.95,11.89]
[1673587147583,0.96,16.962,16.95,11.89]
[1673587148527,0.96,16.961,16.947,118.1793]
[1673587148734,0.96,16.96,16.947,118.1793]
[1673587148949,10.96,16.96,16.942,116.9648]
[1673587149256,17.96,16.959,16.943,20.0]
[1673587149480,10.0,16.957,16.943,20.0]
[1673587149682,18.92,16.956,16.941,20.0]
[1673587149889,18.92,16.956,16.94,11.89]
[1673587150106,24.85777,16.955,16.93,59.48]
[1673587150305,135.40487,16.954,16.931,119.2382]
[1673587150514,14.85777,16.953,16.931,119.2382]
[1673587150723,23.77777,16.952,16.931,119.2382]
[1673587150941,14.85777,16.951,16.931,119.2382]
[1673587151154,17.96,16.95,16.931,119.2382]
[1673587151361,17.0,16.95,16.932,10.0]
[1673587152190,17.0,16.95,16.933,20.0]
[1673587152615,0.96,16.949,16.933,20.0]
[1673587153033,0.96,16.949,16.932,20.0]
[1673587153461,0.96,16.949,16.932,30.0]
[1673587154215,17.0,16.95,16.933,10.0]
[1673587154415,17.0,16.95,16.934,20.0]
[1673587156094,17.0,16.95,16.935,10.0]
[1673587156418,17.0,16.95,16.936,20.0]
[1673587159259,17.0,16.95,16.934,20.0]
[1673587161026,339.16886367,16.96,16.94,79.03]
[1673587161027,313.27886367,16.96,16.94,79.03]
[1673587161241,10.0,16.965,16.941,20.0]
[1673587161446,30.46683801,16.961,16.941,129.3227]
[1673587161778,30.46683801,16.961,16.942,10.0]
[1673587161986,30.46683801,16.961,16.943,20.0]
[1673587163227,17.96,16.96,16.943,20.0]
[1673587164515,48.42683801,16.96,16.943,20.0]
[1673587164701,48.42683801,16.96,16.942,20.0]
[1673587164912,17.96,16.96,16.942,30.0]
[1673587165880,0.96,16.959,16.942,20.0]
[1673587166200,0.96,16.958,16.942,20.0]
[1673587167964,0.96,16.958,16.93,79.14]
[1673587168207,10.0,16.956,16.934,118.3504]
[1673587168508,23.77777,16.955,16.934,118.3504]
[1673587168700,4.85777,16.954,16.934,118.3504]
[1673587169024,18.92,16.953,16.934,118.3504]
[1673587169240,18.92,16.953,16.935,10.0]
[1673587170587,18.92,16.953,16.934,118.3504]
[1673587171009,23.77777,16.953,16.934,118.3504]
[1673587172288,4.85777,16.952,16.935,20.0]
[1673587172499,18.92,16.951,16.935,20.0]
[1673587172687,116.8796,16.958,16.935,20.0]
[1673587172898,20.0,16.957,16.94,15.74]
[1673587173759,116.8796,16.958,16.94,79.06]
[1673587174068,79.27,16.97,16.941,30.0]
[1673587174069,15.95,16.97,16.941,30.0]
[1673587174287,15.95,16.97,16.95,15.83]
[1673587174487,113.7052,16.969,16.95,15.83]
[1673587174685,20.0,16.966,16.95,15.83]
[1673587177452,47.46683801,16.965,16.95,15.83]
[1673587179663,113.7052,16.969,16.951,20.0]
[1673587180058,30.46683801,16.97,16.952,10.0]
[1673587180283,109.2551,16.973,16.96,15.83]
[1673587180499,139.72193801,16.973,16.96,15.83]
[1673587181113,109.2551,16.973,16.96,15.83]
[1673587182900,17.0,16.972,16.953,117.9117]
[1673587183114,17.0,16.972,16.954,20.0]
[1673587184374,10.0,16.971,16.954,20.0]
[1673587185225,17.0,16.97,16.954,20.0]
[1673587185627,50.46683801,16.969,16.95,15.82]
[1673587185854,17.96,16.968,16.95,15.82]
[1673587186068,20.0,16.967,16.95,15.82]
[1673587186262,17.0,16.966,16.95,15.82]
[1673587186467,20.0,16.965,16.95,15.82]
[1673587189340,19.0,16.965,16.95,15.82]
[1673587191234,17.0,16.964,16.95,15.82]
[1673587191441,17.96,16.964,16.944,109.4785]
[1673587191635,136.7371,16.964,16.945,10.0]
[1673587194386,136.7371,16.964,16.948,10.0]
[1673587196697,136.7371,16.964,16.944,109.4785]
[1673587196889,0.96,16.963,16.945,10.0]
[1673587197638,136.7371,16.964,16.945,10.0]
[1673587197833,136.7371,16.964,16.948,10.0]
[1673587201533,10.0,16.976,16.951,10.0]
[1673587201731,124.1489,16.976,16.952,20.0]
[1673587201940,10.0,16.975,16.952,20.0]
[1673587202780,20.5415,16.97,16.952,20.0]
[1673587202988,20.5415,16.97,16.951,20.0]
[1673587203638,20.5415,16.97,16.95,15.74]
[1673587203837,43.7815,16.969,16.945,10.0]
[1673587204050,14.8615,16.968,16.942,10.0]
[1673587204269,43.7815,16.967,16.942,10.0]
[1673587204461,43.7815,16.967,16.945,10.0]
[1673587205721,24.8615,16.967,16.948,10.0]
[1673587205930,20.0,16.968,16.948,10.0]
[1673587207107,17.0,16.967,16.948,10.0]
[1673587207299,20.0,16.966,16.945,10.0]
[1673587207509,17.0,16.965,16.945,10.0]
[1673587208786,0.96,16.964,16.945,10.0]
[1673587209730,0.96,16.964,16.941,10.0]
[1673587209948,10.96,16.963,16.94,89.14]
[1673587210154,17.96,16.962,16.94,89.14]
[1673587210369,17.96,16.962,16.941,10.0]
[1673587211403,17.96,16.962,16.945,10.0]
[1673587212346,4.8615,16.963,16.945,10.0]
[1673587212667,20.0,16.966,16.945,10.0]
[1673587212978,20.0,16.966,16.948,10.0]
[1673587213210,20.0,16.968,16.948,10.0]
[1673587213425,24.8615,16.968,16.948,10.0]
[1673587215317,4.8615,16.968,16.948,10.0]
[1673587215527,4.8615,16.968,16.95,15.74]
[1673587215743,114.1489,16.969,16.952,10.0]
[1673587216140,114.1489,16.969,16.953,20.0]
[1673587217742,144.61573801,16.969,16.953,20.0]
[1673587220135,114.1489,16.969,16.953,20.0]
[1673587222663,114.1489,16.969,16.952,20.0]
[1673587223836,17.0,16.968,16.952,20.0]
[1673587224667,17.0,16.968,16.951,20.0]
[1673587232250,20.0,16.967,16.95,15.74]
[1673587232470,10.0,16.965,16.95,15.74]
[1673587232779,1.92,16.964,16.944,109.4785]
[1673587232970,18.92,16.964,16.944,109.4785]
[1673587233390,17.96,16.964,16.944,109.4785]
[1673587234561,17.96,16.964,16.945,10.0]
[1673587234763,17.96,16.964,16.944,109.4785]
[1673587235086,17.96,16.964,16.945,10.0]
[1673587236539,17.0,16.964,16.945,10.0]
[1673587237614,4.8615,16.965,16.95,15.83]
[1673587237800,20.0,16.968,16.95,15.83]
[1673587238558,15.89,16.97,16.951,20.0]
[1673587238752,135.93170542,16.974,16.952,10.0]
[1673587238959,10.0,16.973,16.953,20.0]
[1673587240562,17.0,16.968,16.953,20.0]
[1673587240858,17.0,16.968,16.951,20.0]
[1673587243391,90.07796152,16.974,16.951,20.0]
[1673587243392,30.46683801,16.97,16.952,10.0]
[1673587243585,115.0891,16.978,16.953,20.0]
[1673587243917,119.9506,16.978,16.96,15.76]
[1673587244229,20.0,16.977,16.96,15.76]
[1673587245384,40.46683801,16.976,16.96,15.76]
[1673587245701,20.0,16.975,16.96,15.76]
[1673587245915,17.0,16.974,16.96,15.76]
[1673587246104,0.96,16.973,16.96,15.76]
[1673587246624,31.42683801,16.973,16.96,15.76]
[1673587246835,17.0,16.972,16.96,15.76]
[1673587249166,47.46683801,16.972,16.96,15.76]
[1673587253262,17.0,16.972,16.96,15.76]
[1673587253473,17.96,16.973,16.96,15.76]
[1673587256305,17.96,16.973,16.96,11.81]
[1673587259476,0.96,16.973,16.96,11.81]
[1673587259689,109.8833,16.974,16.96,11.81]
[1673587260848,17.0,16.973,16.96,11.81]
[1673587265579,10.0,16.972,16.96,11.81]
[1673587265789,17.0,16.971,16.96,11.81]
[1673587266209,17.0,16.972,16.96,11.81]
[1673587266746,17.0,16.973,16.96,11.81]
[1673587268734,17.0,16.973,16.95,59.28]
[1673587268735,10.0,16.972,16.95,59.28]
[1673587268947,11.82,16.97,16.95,11.82]
[1673587269142,151.618,16.969,16.95,11.82]
[1673587269355,17.0,16.968,16.95,11.82]
[1673587269686,20.0,16.967,16.95,11.82]
[1673587269870,17.0,16.966,16.95,11.82]
[1673587270084,20.0,16.965,16.95,11.82]
[1673587272814,17.0,16.964,16.95,11.82]
[1673587275991,17.0,16.964,16.947,108.1928]
[1673587276301,0.96,16.963,16.947,108.1928]
[1673587283242,17.0,16.964,16.948,10.0]
[1673587283560,20.0,16.965,16.948,10.0]
[1673587283872,0.96,16.964,16.948,10.0]
[1673587284278,0.96,16.965,16.948,10.0]
[1673587284809,17.96,16.965,16.948,10.0]
[1673587285037,17.0,16.964,16.948,10.0]
[1673587285433,17.96,16.965,16.948,10.0]
[1673587291035,17.96,16.965,16.947,108.1928]
[1673587292287,17.96,16.965,16.948,10.0]
[1673587293978,17.96,16.965,16.947,108.1928]
[1673587294176,0.96,16.964,16.947,108.1928]
[1673587294388,0.96,16.963,16.947,108.1928]
[1673587294804,0.96,16.964,16.947,108.1928]
[1673587298179,0.96,16.964,16.948,10.0]
[1673587299124,0.96,16.964,16.947,108.1928]
[1673587301329,1.92,16.964,16.947,108.1928]
[1673587302053,0.96,16.963,16.947,108.1928]
[1673587302472,0.96,16.964,16.947,108.1928]
[1673587303310,0.96,16.964,16.948,10.0]
[1673587303542,0.96,16.964,16.947,108.1928]
[1673587304468,0.96,16.963,16.947,108.1928]
[1673587304676,0.96,16.962,16.947,108.1928]
[1673587305534,115.1227,16.963,16.948,10.0]
[1673587308806,115.1227,16.963,16.947,108.1928]
[1673587309315,17.0,16.962,16.947,108.1928]
[1673587311208,353.11115315,16.962,16.947,108.1928]
[1673587315190,0.96,16.961,16.947,108.1928]
[1673587316677,12.71,16.96,16.94,11.82]
[1673587316990,10.0,16.958,16.94,11.82]
[1673587317200,136.915,16.957,16.94,11.82]
[1673587317409,17.96,16.956,16.935,116.2563]
[1673587317617,20.0,16.955,16.935,116.2563]
[1673587317811,18.92,16.954,16.935,116.2563]
[1673587323509,17.96,16.954,16.935,116.2563]
[1673587324115,10.96,16.953,16.935,116.2563]
[1673587324334,11.82,16.95,16.935,116.2563]
[1673587324554,17.96,16.949,16.93,11.81]
[1673587324766,157.3813,16.949,16.93,11.81]
[1673587325385,156.4213,16.949,16.93,21.81]
[1673587326768,0.96,16.948,16.93,21.81]
[1673587326985,0.96,16.947,16.93,21.81]
[1673587327602,0.96,16.948,16.93,21.81]
[1673587329182,0.96,16.948,16.93,11.81]
[1673587329712,0.96,16.948,16.931,10.0]
[1673587330030,155.4613,16.949,16.931,10.0]
[1673587330436,0.96,16.948,16.931,10.0]
[1673587331080,0.96,16.948,16.93,21.81]
[1673587331397,0.96,16.948,16.931,10.0]
[1673587331584,135.4613,16.949,16.932,20.0]
[1673587335167,135.4613,16.949,16.931,20.0]
[1673587335380,135.4613,16.949,16.932,10.0]
[1673587335588,135.4613,16.949,16.933,20.0]
[1673587336523,135.4613,16.949,16.93,11.81]
[1673587336524,20.96,16.948,16.93,11.81]
[1673587336732,17.0,16.947,16.93,11.81]
[1673587336973,0.96,16.946,16.93,11.81]
[1673587337184,0.96,16.945,16.93,11.81]
[1673587337369,17.0,16.945,16.93,11.81]
[1673587337804,5.8215,16.946,16.93,11.81]
[1673587338027,11.89,16.96,16.94,11.76]
[1673587338205,11.89,16.96,16.941,20.0]
[1673587338650,11.89,16.96,16.942,19.2319298]
[1673587338864,11.89,16.96,16.944,10.0]
[1673587339048,11.89,16.96,16.945,20.0]
[1673587339258,11.89,16.96,16.945,39.2319298]
[1673587339574,11.89,16.96,16.945,20.0]
[1673587339783,17.0,16.959,16.945,20.0]
[1673587341464,11.89,16.96,16.946,10.0]
[1673587341798,336.11115315,16.962,16.95,11.76]
[1673587342009,118.7311,16.964,16.95,11.76]